Workbook

Sheet MSU
B1: Heikki Rasilainen | E1: 24.9.1997 Pöytyä
B2: SUPERPESIS | E2: Runkosarja | I2: Kärkilyönnit (KL), pesänvälit | P2: Runkosarja TOP-30 | U2: Alempi loppusarja | AB2: Ylempi loppusarja TOP-10 | AG2: Play off, voitot, voittoprosentti | AL2: Arvo-ottelut | AO2: Mitalit
B3: Vuosi | C3: Sija | D3: Seura | E3: OTT | F3: KUN | G3: LÖI | H3: TOI | I3: KL | J3: 0 > 1 | K3: 1 > 2 | L3: 2 > 3 | M3: 3 > k | N3: KL-% | P3: LÖI | Q3: TOI | R3: L+T | S3: KL | U3: OTT | V3: KUN | W3: LÖI | X3: TOI | Y3: KL | Z3: KL-% | AB3: LÖI | AC3: TOI | AD3: L+T | AE3: KL | AG3: Puolivälierät | AH3: Välierät | AI3: Pronssi | AJ3: Finaalit | AL3: IL | AM3: LL | AN3: hSM | AO3: K | AP3: H | AQ3: P
B4: 2013 | C4: 4. | D4: PöU | F4: suomensarja | AA4: 66
B5: 2014 | C5: 1. | D5: PöU | F5: suomensarja
B6: 2015 | C6: 1. | D6: LP | F6: suomensarja
B7: 2015 | C7: 10. | D7: PöU | F7: ykköspesis
B8: 2016 | C8: 6. | D8: Tahko 2 | F8: suomensarja | AA8: 66
B9: 2016 | C9: 7. | D9: PöU | F9: ykköspesis | AA9: 66
B10: 2017 | C10: 6. | D10: LP | F10: suomensarja | AA10: 66
B11: 2017 | C11: 3. | D11: PöU | F11: ykköspesis | U11: 3 | V11: 0 | W11: 0 | X11: 0 | Y11: 0 | Z11: 0.0 % | AA11: 12
B12: 2018 | C12: 7. | D12: PöU | F12: ykköspesis | AA12: 66
B13: 2019 | C13: 9. | D13: PöU | F13: ykköspesis
B14: 2020 | C14: 5. | D14: PöU | F14: suomensarja | AA14: 66
B15: 2020 | C15: 7. | D15: LP | F15: ykköspesis | AA15: 66
B16: 2021 | C16: 6. | D16: PöU | F16: suomensarja | AA16: 66
B17: 2021 | C17: 5. | D17: LP | F17: ykköspesis | AA17: 66
B18: 2022 | C18: 5. | D18: PöU | F18: suomensarja | AA18: 66
B19: 2022 | C19: 5. | D19: LP | F19: ykköspesis | AA19: 66
B20: Yhteensä | E20: =SUM(E4:E19) -> 0 | F20: 0 | G20: 0 | H20: 0 | I20: 0 | J20: 0 | K20: 0 | L20: 0 | M20: 0 | O20: =SUM(O4:O19) -> 0 | P20: 0-0-0 | Q20: 0-0-0 | R20: 0-0-0 | S20: 0-0-0 | U20: 3 | V20: 0 | W20: 0 | X20: 0 | Y20: 0 | Z20: 0.0 % | AA20: =SUM(AA3:AA19) -> 738 | AB20: 0-0-0 | AC20: 0-0-0 | AD20: 0-0-0 | AE20: 0-0-0 | AG20: 0/0 | AH20: 0/0 | AI20: 0/0 | AJ20: 0/0 | AL20: =SUM(AL4:AL19) -> 0 | AM20: 0 | AN20: 0 | AO20: 0 | AP20: 0 | AQ20: 0
AG21: 0.0 % | AH21: 0.0 % | AI21: 0.0 % | AJ21: 0.0 %
B22: Pesispörssi | D22: =SUM(F20:H20)+((I20-F20-G20)/3)+(E20/3)+(AL20*25)+(AM20*25)+(AN20*10)+(AO20*25)+(AP20*20)+(AQ20*15) -> 0.0
B24: URA SUPERISSA | E24: OTT | F24: KUN | G24: LÖI | H24: TOI | I24: KL | K24: ka/L | L24: ka/T | M24: ka/KL | N24: KL-% | P24: ENSIMMÄISET RUNKOSARJASSA | AG24: ENSIMMÄISET PUDOTUSPELEISSÄ | AL24: YLEISÖ
B25: Runkosarja | P25: Ottelu | AG25: Ottelu
B26: Ylempi loppusarja | P26: Lyöty | AG26: Lyöty
B27: Alempi loppusarja | E27: 3 | F27: 0 | G27: 0 | H27: 0 | I27: 0 | K27: =PRODUCT((F27+G27)/E27) -> 0.00 | L27: =PRODUCT(H27/E27) -> 0.00 | M27: =PRODUCT(I27/E27) -> 0.00 | N27: =PRODUCT(I27/O27) -> 0.0 % | O27: 12 | P27: Tuotu | AG27: Tuotu
B28: KAIKKI | E28: =SUM(E25:E27) -> 3 | F28: =SUM(F25:F27) -> 0 | G28: =SUM(G25:G27) -> 0 | H28: =SUM(H25:H27) -> 0 | I28: =SUM(I25:I27) -> 0 | K28: =PRODUCT((F28+G28)/E28) -> 0.00 | L28: =PRODUCT(H28/E28) -> 0.00 | M28: =PRODUCT(I28/E28) -> 0.00 | N28: =PRODUCT(I28/O28) -> 0.0 % | O28: =SUM(O25:O27) -> 12 | P28: Kunnari | AG28: Kunnari
B30: Seurat | D30: PöU = Pöytyän Urheilijat (1945), kasvattajaseura
D31: LP = Loimaan Palloilijat Junioripesis (2003)
D32: Tahko = Hyvinkään Tahko (1915)

Sheet MYP, MSS
B1: Heikki Rasilainen | E1: 24.9.1997 Pöytyä
B2: YKKÖSPESIS | E2: Runkosarja | L2: Runkosarja TOP-10 | Q2: Jatkosarjat | X2: SUOMENSARJA | AA2: Runkosarja | AH2: Runkosarja TOP-10 | AM2: Jatkosarjat
B3: Vuosi | C3: Sija | D3: Seura | E3: OTT | F3: KUN | G3: LÖI | H3: TOI | I3: KL | J3: KL-% | L3: LÖI | M3: TOI | N3: L+T | O3: KL | Q3: OTT | R3: KUN | S3: LÖI | T3: TOI | U3: KL | V3: KL-% | X3: Vuosi | Y3: Sija | Z3: Seura | AA3: OTT | AB3: KUN | AC3: LÖI | AD3: TOI | AE3: KL | AF3: KL-% | AH3: LÖI | AI3: TOI | AJ3: L+T | AK3: KL | AM3: OTT | AN3: KUN | AO3: LÖI | AP3: TOI | AQ3: KL | AR3: KL-%
X4: 2014 | Y4: 1. | Z4: PöU | AA4: 15 | AB4: 0 | AC4: 10 | AD4: 1 | AE4: 27 | AF4: 47.4 % | AG4: 57
B5: 2015 | C5: 10. | D5: PöU | E5: 19 | F5: 0 | G5: 1 | H5: 1 | I5: 27 | J5: 31.4 % | K5: 86 | X5: 2015 | Y5: 1. | Z5: LP Juniorit | AA5: 4 | AB5: 0 | AC5: 2 | AD5: 4 | AE5: 12 | AF5: 52.2 % | AG5: 23 | AM5: 8 | AN5: 0 | AO5: 4 | AP5: 2 | AQ5: 20 | AR5: 41.7 % | AS5: 48
B6: 2016 | C6: 7. | D6: PöU | E6: 10 | F6: 0 | G6: 1 | H6: 1 | I6: 14 | J6: 28.0 % | K6: 50 | X6: 2016 | Y6: 6. | Z6: Tahko 2 | AA6: 2 | AB6: 0 | AC6: 1 | AD6: 0 | AE6: 4 | AF6: 30.8 % | AG6: 13
B7: 2017 | C7: 3. | D7: PöU | E7: 18 | F7: 0 | G7: 0 | H7: 3 | I7: 38 | J7: 41.3 % | K7: 92 | Q7: 3 | R7: 0 | S7: 0 | T7: 0 | U7: 3 | V7: 17.6 % | W7: 17 | X7: 2017 | Y7: 6. | Z7: LP Juniorit | AA7: 10 | AB7: 0 | AC7: 4 | AD7: 5 | AE7: 23 | AF7: 43.4 % | AG7: 53
B8: 2018 | C8: 7. | D8: PöU | E8: 21 | F8: 0 | G8: 2 | H8: 2 | I8: 44 | J8: 40.7 % | K8: 108
B9: 2019 | C9: 9. | D9: PöU | E9: 23 | F9: 0 | G9: 2 | H9: 5 | I9: 51 | J9: 42.5 % | K9: 120
B10: 2020 | C10: 7. | D10: LP | E10: 13 | F10: 0 | G10: 2 | H10: 0 | I10: 14 | J10: 37.8 % | K10: 37 | X10: 2020 | Y10: 5. | Z10: PöU | AA10: 5 | AB10: 2 | AC10: 7 | AD10: 6 | AE10: 16 | AF10: 53.3 % | AG10: 30
B11: 2021 | C11: 5. | D11: LP | E11: 13 | F11: 1 | G11: 1 | H11: 1 | I11: 15 | J11: 44.1 % | K11: 34 | X11: 2021 | Y11: 6. | Z11: PöU | AA11: 10 | AB11: 3 | AC11: 7 | AD11: 12 | AE11: 39 | AF11: 54.2 % | AG11: 72
B12: 2022 | C12: 8. | D12: LP | E12: 3 | F12: 0 | G12: 0 | H12: 1 | I12: 1 | J12: 50.0 % | K12: 2 | X12: 2022 | Y12: 5. | Z12: PöU | AA12: 15 | AB12: 0 | AC12: 9 | AD12: 4 | AE12: 37 | AF12: 46.8 % | AG12: 79
B13: YHTEENSÄ | E13: =SUM(E4:E12) -> 120 | F13: =SUM(F4:F12) -> 1 | G13: =SUM(G4:G12) -> 9 | H13: =SUM(H4:H12) -> 14 | I13: =SUM(I4:I12) -> 204 | J13: =PRODUCT(I13/K13) -> 38.6 % | K13: =SUM(K4:K12) -> 529 | Q13: =SUM(Q4:Q12) -> 3 | R13: =SUM(R4:R12) -> 0 | S13: =SUM(S4:S12) -> 0 | T13: =SUM(T4:T12) -> 0 | U13: =SUM(U4:U12) -> 3 | V13: =PRODUCT(U13/W13) -> 17.6 % | W13: =SUM(W4:W12) -> 17 | X13: YHTEENSÄ | AA13: =SUM(AA4:AA12) -> 61 | AB13: =SUM(AB4:AB12) -> 5 | AC13: =SUM(AC4:AC12) -> 40 | AD13: =SUM(AD4:AD12) -> 32 | AE13: =SUM(AE4:AE12) -> 158 | AF13: =PRODUCT(AE13/AG13) -> 48.3 % | AG13: =SUM(AG4:AG12) -> 327 | AM13: =SUM(AM4:AM12) -> 8 | AN13: =SUM(AN4:AN12) -> 0 | AO13: =SUM(AO4:AO12) -> 4 | AP13: =SUM(AP4:AP12) -> 2 | AQ13: =SUM(AQ4:AQ12) -> 20 | AR13: =PRODUCT(AQ13/AS13) -> 41.7 % | AS13: =SUM(AS4:AS12) -> 48
B15: KAIKKI OTTELUT | E15: OTT | F15: KUN | G15: LÖI | H15: TOI | I15: KL | J15: KL-% | L15: ka/L | M15: ka/T | N15: ka/l+t | O15: ka/kl | R15: Seurat | T15: PöU = Pöytyän Urheilijat (1945), kasvattajaseura
B16: SUPERPESIS | E16: 3 | F16: 0 | G16: 0 | H16: 0 | I16: 0 | J16: 0.0 % | K16: 12 | L16: =PRODUCT((F16+G16)/E16) -> 0.00 | M16: =PRODUCT(H16/E16) -> 0.00 | N16: =PRODUCT((F16+G16+H16)/E16) -> 0.00 | O16: =PRODUCT(I16/E16) -> 0.00 | T16: LP = Loimaan Palloilijat Junioripesis (2003)
B17: YKKÖSPESIS | E17: =PRODUCT(E13+Q13) -> 123 | F17: =PRODUCT(F13+R13) -> 1 | G17: =PRODUCT(G13+S13) -> 9 | H17: =PRODUCT(H13+T13) -> 14 | I17: =PRODUCT(I13+U13) -> 207 | J17: =PRODUCT(I17/K17) -> 37.9 % | K17: =PRODUCT(K13+W13) -> 546 | L17: =PRODUCT((F17+G17)/E17) -> 0.08 | M17: =PRODUCT(H17/E17) -> 0.11 | N17: =PRODUCT((F17+G17+H17)/E17) -> 0.20 | O17: =PRODUCT(I17/E17) -> 1.68 | T17: Tahko = Hyvinkään Tahko (1915)
B18: SUOMENSARJA | E18: =PRODUCT(AA13+AM13) -> 69 | F18: =PRODUCT(AB13+AN13) -> 5 | G18: =PRODUCT(AC13+AO13) -> 44 | H18: =PRODUCT(AD13+AP13) -> 34 | I18: =PRODUCT(AE13+AQ13) -> 178 | J18: =PRODUCT(I18/K18) -> 47.5 % | K18: =PRODUCT(AG13+AS13) -> 375 | L18: =PRODUCT((F18+G18)/E18) -> 0.71 | M18: =PRODUCT(H18/E18) -> 0.49 | N18: =PRODUCT((F18+G18+H18)/E18) -> 1.20 | O18: =PRODUCT(I18/E18) -> 2.58
B19: YHTEENSÄ | E19: =SUM(E16:E18) -> 195 | F19: =SUM(F16:F18) -> 6 | G19: 53 | H19: 48 | I19: 385 | J19: =PRODUCT(I19/K19) -> 41.3 % | K19: =SUM(K16:K18) -> 933 | L19: =PRODUCT((F19+G19)/E19) -> 0.30 | M19: =PRODUCT(H19/E19) -> 0.25 | N19: =PRODUCT((F19+G19+H19)/E19) -> 0.55 | O19: =PRODUCT(I19/E19) -> 1.97
